bitfinex-derivatives/quotes_ETHF0:USTF0_20250712
["timestamp","ask_amount","ask_price","bid_price","bid_amount"]
[1752334401374,1.60484,2920.7,2920.5,1.0013]
[1752334401558,1.60484,2920.7,2920.1,48.688]
[1752334401559,0.9203,2920.3,2920.0,1.0013]
[1752334401764,3.32346,2920.2,2920.1,0.68465]
[1752334402169,2.36117758,2920.3,2919.8,0.68472]
[1752334402364,3.32352,2919.9,2919.8,0.68472]
[1752334402564,2.6388,2919.9,2919.8,0.68472]
[1752334402762,2.6388,2920.4,2920.3,0.68462]
[1752334402973,3.3234,2920.4,2920.3,1.0013]
[1752334403176,0.68462,2920.3,2920.2,0.68464]
[1752334403370,0.9203,2920.3,2919.7,4.2091]
[1752334403572,2.6388,2919.9,2919.8,0.68471]
[1752334403772,2.6388,2919.9,2919.8,1.68601]
[1752334404571,0.9203,2920.3,2920.2,0.68465]
[1752334404778,0.68465,2920.3,2920.2,0.68463]
[1752334404974,0.68465,2920.3,2920.2,1.68593]
[1752334405175,3.32345,2920.3,2920.2,1.68593]
[1752334405378,3.2078,2920.5,2919.7,3.2078]
[1752334405579,0.68474,2919.9,2919.8,0.68472]
[1752334405773,1.71153,2920.4,2919.4,2.53546]
[1752334405774,3.2078,2920.2,2919.5,2.71331]
[1752334405975,3.2078,2920.2,2919.4,4.2091]
[1752334406178,0.68476,2919.8,2919.7,0.68474]
[1752334406381,2.6388,2919.8,2919.7,1.68604]
[1752334406678,2.6388,2919.8,2919.4,4.91985]
[1752334406679,3.2078,2919.9,2919.8,0.68474]
[1752334406875,3.2078,2919.9,2919.8,1.68604]
[1752334407074,4.9263,2919.9,2919.8,1.68604]
[1752334407270,5.8466,2919.9,2919.8,0.68474]
[1752334407671,1.7185,2919.8,2919.2,3.04982742]
[1752334407873,2.6388,2919.5,2919.4,0.68482]
[1752334408078,3.32361,2919.5,2919.4,0.68482]
[1752334408270,5.8466,2919.9,2919.8,0.68474]
[1752334408471,4.1281,2920.2,2920.1,0.68467]
[1752334408672,0.68468,2920.1,2920.0,0.68468]
[1752334408876,4.1281,2920.2,2920.1,1.0013]
[1752334409074,2.6388,2920.1,2920.0,0.68469]
[1752334409275,1.7185,2920.1,2920.0,1.68599]
[1752334409680,2.40317,2920.1,2920.0,1.0013]
[1752334409977,3.32353,2919.9,2919.8,0.68474]
[1752334410378,3.32355,2919.8,2919.7,0.68475]
[1752334410880,1.7185,2919.8,2919.7,1.68605]
[1752334411278,3.32354,2919.8,2919.7,1.0013]
[1752334411478,0.68476,2919.7,2919.6,3.89257]
[1752334411680,3.32356,2919.7,2919.6,3.2078]
[1752334411885,3.32356,2919.7,2919.6,3.89259]
[1752334412179,2.6388,2919.7,2919.6,3.89259]
[1752334412484,0.6847,2920.0,2919.9,0.6847]
[1752334412681,2.6388,2920.0,2919.9,1.686]
[1752334412882,1.7185,2920.0,2919.9,1.686]
[1752334413181,1.7185,2919.5,2919.1,1.71227]
[1752334413478,1.7185,2919.8,2919.1,48.788]
[1752334413684,2.6388,2919.4,2919.3,0.68484]
[1752334414180,0.6848,2919.6,2919.5,0.68481]
[1752334414381,0.9203,2919.7,2919.1,48.788]
[1752334414577,0.68482,2919.5,2919.4,0.68482]
[1752334414781,3.32362,2919.5,2919.4,0.68482]
[1752334415181,3.32362,2919.5,2919.4,0.68905195]
[1752334415885,2.6388,2919.5,2919.4,0.68905195]
[1752334416186,2.6388,2919.5,2919.4,3.89685195]
[1752334416481,1.7185,2919.5,2919.4,3.89685195]
[1752334417472,2.6388,2919.5,2919.4,3.89685195]
[1752334417673,2.6388,2919.9,2919.8,0.68474]
[1752334417871,3.32352,2919.9,2919.8,0.68474]
[1752334418081,3.32356,2919.8,2919.7,0.68475]
[1752334418385,2.6388,2919.8,2919.7,0.68475]
[1752334418581,3.32361,2919.5,2919.4,0.00423195]
[1752334418878,2.6388,2919.5,2919.4,0.68906195]
[1752334419980,0.68473,2919.9,2919.8,0.68474]
[1752334420182,2.6388,2919.9,2919.8,0.68474]
[1752334420582,2.6388,2920.3,2920.2,0.68465]
[1752334420787,1.60486,2920.6,2920.5,0.68458]
[1752334420989,3.49200606,2920.6,2920.5,0.68458]
[1752334421184,0.9203,2920.5,2920.2,50.45959]
[1752334421492,2.6388,2920.5,2920.4,0.6846]
[1752334421685,3.32339,2920.5,2920.4,0.6846]
[1752334421984,1.7185,2920.7,2919.8,3.2078]
[1752334422186,2.40331,2919.5,2919.3,0.68485]
[1752334422383,2.6388,2919.5,2919.4,0.68906195]
[1752334422578,3.32361,2919.5,2919.4,0.00423195]
[1752334422981,3.32361,2919.5,2919.4,0.68906195]
[1752334423185,2.6388,2919.5,2919.4,0.68906195]
[1752334423384,0.68477,2919.7,2919.4,0.00423195]
[1752334423593,0.68481,2919.5,2919.4,0.68905195]
[1752334423789,0.6848,2919.6,2919.5,0.6848]
[1752334424090,3.3092,2919.6,2919.5,0.6848]
[1752334424287,2.6244,2919.6,2919.5,0.6848]
[1752334424886,3.30919,2919.6,2919.5,0.6848]
[1752334425088,3.30921,2919.5,2919.4,0.68904195]
[1752334425393,3.30921,2919.5,2919.4,0.00423195]
[1752334425593,2.6244,2919.5,2919.4,0.68906195]
[1752334426288,3.30921,2919.5,2919.4,0.00423195]
[1752334426495,3.30921,2919.5,2919.4,0.68906195]
[1752334426686,2.6244,2919.5,2919.4,0.68906195]
[1752334426891,3.30921,2919.5,2919.4,0.68906195]
[1752334427091,2.6244,2919.5,2919.4,0.68906195]
[1752334428792,5.8924,2919.8,2919.4,0.61043195]
[1752334428998,3.36941,2919.6,2919.5,0.6848]
[1752334429196,0.9805,2919.5,2918.7,3.2078]
[1752334429493,1.7041,2918.7,2918.6,0.68502]
[1752334429687,0.9805,2918.6,2918.5,0.68503]
[1752334429894,0.9805,2918.6,2918.4,3.2078]
[1752334429895,2.6846,2918.8,2918.4,3.2078]
[1752334430092,0.685,2918.7,2918.6,0.68501]
[1752334430290,2.6846,2918.6,2918.4,3.89286]
[1752334430498,2.6846,2918.5,2918.4,3.2078]
[1752334430994,3.2078,2918.9,2918.7,0.68499]
[1752334431196,2.6846,2918.8,2918.4,3.8183]
[1752334431498,2.6846,2918.6,2918.5,0.68502]
[1752334431697,1.7041,2918.8,2918.7,0.68499]
[1752334431900,2.6846,2918.8,2918.6,0.685]
[1752334432100,2.6846,2918.7,2918.6,0.685]
[1752334432696,2.6846,2918.7,2918.4,3.2078]
[1752334433001,1.7041,2918.8,2918.6,0.68502]
[1752334433198,2.6846,2918.8,2918.7,0.685]
[1752334433400,1.7041,2918.8,2918.4,27.6888]
[1752334433599,2.6846,2918.6,2918.5,0.68503]
[1752334434698,2.6846,2918.6,2918.4,3.89285]
[1752334434894,0.9805,2918.6,2918.4,3.2078]
[1752334435202,2.6846,2918.5,2918.4,3.89287]
[1752334437699,2.6846,2918.5,2918.4,28.33087]
[1752334437903,2.6846,2918.5,2918.4,3.89287]
[1752334438302,2.6846,2918.5,2918.4,3.2078]
[1752334438504,2.6846,2918.5,2918.4,3.89287]
[1752334439100,2.6846,2918.5,2918.4,3.2078]
[1752334439299,3.36964,2918.5,2918.4,3.2078]
[1752334439499,2.6846,2918.5,2918.4,3.2078]
[1752334439702,2.6846,2918.5,2918.4,3.89287]
[1752334440004,2.6846,2918.5,2918.4,3.2078]
[1752334440302,3.2078,2918.6,2918.1,3.2078]
[1752334440507,0.9805,2918.4,2918.1,3.2078]
[1752334440705,3.36971,2918.2,2918.1,3.2078]
[1752334440900,0.9805,2917.9,2917.8,3.2078]
[1752334441100,3.36978,2917.9,2917.8,3.2078]
[1752334441302,2.6846,2917.7,2917.6,0.38902015]
[1752334441601,1.7041,2917.7,2916.9,6.25762742]
[1752334441802,0.05967155,2917.9,2917.6,3.2078]
[1752334442103,3.2078,2918.8,2918.0,0.9572]
[1752334442314,3.2078,2919.1,2918.5,3.2078]
[1752334442497,0.68499,2918.8,2918.4,0.68506]
[1752334442703,3.2078,2919.1,2918.4,0.68505]
[1752334442899,0.68501,2918.7,2918.2,4.165]
[1752334443205,3.2078,2919.1,2918.2,4.165]
[1752334443206,2.36117758,2918.9,2918.2,3.2078]
[1752334443707,0.9805,2918.8,2918.7,0.685]
[1752334444204,2.6846,2918.8,2918.7,0.685]
[1752334444408,5.56897758,2919.5,2918.7,0.685]
[1752334444409,1.7041,2919.0,2918.9,0.68493]
[1752334444711,2.6846,2919.0,2918.9,0.68493]
[1752334444906,2.6846,2919.0,2918.9,1.64213]
[1752334445311,3.2078,2919.8,2918.9,0.9572]
[1752334445511,3.2078,2919.5,2919.3,0.68484]
[1752334445716,5.8924,2919.5,2919.4,0.68483]
[1752334446007,40.8,2919.8,2919.4,4.165]
[1752334446008,1.7041,2919.7,2919.4,4.165]
[1752334446208,0.9805,2920.2,2919.6,0.9572]
[1752334446412,0.9805,2920.2,2919.9,0.68471]
[1752334446608,0.85218678,2920.1,2919.8,0.9572]
[1752334446810,1.21587584,2920.6,2919.8,0.9572]
[1752334447008,4.06000932,2920.5,2919.8,3.2078]
[1752334447206,1.7041,2920.1,2919.8,4.8457]
[1752334447406,3.90047584,2920.3,2920.2,0.68464]
[1752334447715,0.85215098,2920.3,2920.2,3.27974]
[1752334447911,2.55625098,2920.3,2919.9,5.8029]
[1752334448216,2.55625098,2920.3,2920.2,0.68464]
[1752334448217,2.6846,2920.3,2920.2,0.68464]
[1752334448419,3.53681849,2920.3,2920.2,0.68464]
[1752334448912,0.85221849,2920.3,2919.9,3.2078]
[1752334449115,0.85221849,2920.3,2919.0,4.07343758]
[1752334449116,1.7041,2919.7,2919.3,3.2078]
[1752334449312,2.36117758,2920.1,2919.4,0.68482]
[1752334449313,3.89253,2919.9,2919.4,0.68482]
[1752334449617,2.6846,2919.5,2919.4,0.68482]
[1752334449815,4.1883,2919.9,2919.4,0.9572]
[1752334450014,1.7041,2919.7,2919.6,0.68478]
[1752334450217,1.7041,2919.7,2919.6,1.64198]
[1752334450518,2.6846,2919.7,2919.6,0.68478]
[1752334451520,1.7041,2919.6,2919.3,4.8457]
[1752334451815,0.68482,2919.5,2919.3,3.2078]
[1752334452020,2.6846,2919.4,2919.3,3.2078]
[1752334452517,2.6846,2919.4,2919.3,3.89265]
[1752334452518,1.7041,2919.4,2919.3,3.89265]
[1752334452721,3.36934,2919.8,2919.4,0.68481]
[1752334452922,3.36937,2919.7,2919.3,3.89264]
[1752334453114,2.6846,2919.5,2919.3,3.89264]
[1752334453317,2.6572,2919.4,2919.3,3.89264]
[1752334453517,2.6572,2919.4,2919.3,3.2078]
[1752334453922,2.6572,2919.4,2919.3,3.89265]
[1752334454221,2.6572,2919.4,2919.3,4.84985]
[1752334454916,1.6767,2919.8,2919.7,0.68476]
[1752334455316,1.6767,2919.8,2919.7,1.66076]
[1752334455516,0.68476,2919.7,2919.6,3.2078]
[1752334455718,3.29256,2919.7,2919.6,3.2078]
[1752334456219,0.68475,2919.8,2919.5,0.6848]
[1752334456419,2.6078,2919.6,2919.3,3.2078]
[1752334456620,2.6078,2919.5,2919.4,0.68483]
[1752334456820,1.6767,2919.6,2919.5,0.68481]
[1752334457020,0.68483,2919.4,2919.0,3.2078]
[1752334457224,0.68481,2919.5,2919.0,3.2078]
[1752334457416,0.9311,2919.4,2919.2,0.68486]
[1752334457619,3.29263,2919.4,2919.2,0.68486]
[1752334457824,2.6078,2919.2,2919.0,3.2078]
[1752334458022,0.9311,2919.2,2919.0,4.1838]
[1752334458321,0.9311,2919.2,2919.1,0.6849]
[1752334458725,0.9311,2919.2,2919.1,1.6609]
[1752334459030,2.6078,2919.2,2919.1,1.6609]
[1752334459324,1.6767,2919.2,2919.1,1.6609]
[1752334459620,2.36117758,2919.6,2918.6,3.2078]
[1752334459817,2.6078,2919.2,2918.7,0.68498]
[1752334460024,0.68495,2918.9,2918.7,0.68498]
[1752334460219,2.6078,2918.8,2918.7,0.68498]
[1752334460414,2.6078,2919.3,2918.8,0.976]
[1752334460619,1.6767,2919.5,2919.3,0.68483]
[1752334460815,2.6078,2919.4,2919.3,1.66083]
[1752334461021,0.68484,2919.4,2919.2,3.2078]
[1752334461229,2.6078,2919.3,2919.2,3.89267]
[1752334461621,2.6078,2919.3,2919.2,3.2078]
[1752334462122,3.29265,2919.3,2919.2,3.2078]
[1752334462320,3.29265,2919.3,2919.1,0.68488]
[1752334462321,0.9311,2919.3,2918.7,3.2078]
[1752334462626,0.68497,2918.8,2918.7,3.2078]
[1752334462921,3.29277,2918.8,2918.7,3.2078]
[1752334463522,2.6078,2918.8,2918.7,3.2078]
[1752334463722,3.29277,2918.8,2918.7,3.2078]
[1752334463924,2.6078,2918.8,2918.7,3.89279]
[1752334464323,1.6767,2918.9,2918.7,3.2078]
[1752334464628,3.29277,2918.8,2918.7,3.2078]
[1752334464825,0.9311,2918.9,2918.4,3.2078]
[1752334465126,0.9311,2918.6,2918.5,0.68504]
[1752334465522,2.6078,2918.8,2918.6,0.976]
[1752334465723,2.6078,2918.8,2918.7,0.68499]
[1752334465924,2.6078,2918.8,2918.7,1.66099]
[1752334466124,3.29277,2918.8,2918.7,0.68499]
[1752334466638,3.2078,2919.2,2918.4,4.92043]
[1752334466929,3.29277,2918.8,2918.7,3.2078]
[1752334467320,1.6767,2918.5,2918.4,3.2078]
[1752334467524,2.6078,2918.5,2918.4,3.89284]
[1752334468331,1.61613,2918.6,2918.4,0.68505]
[1752334468531,2.6078,2918.5,2918.4,0.68505]
[1752334468926,1.6767,2918.5,2918.4,0.68505]
[1752334469129,0.9311,2919.1,2919.0,0.68492]
[1752334469328,1.61601,2919.1,2918.8,2.5801]
[1752334469629,2.6078,2919.0,2918.9,0.68493]
[1752334470024,2.36165,2918.9,2918.8,3.2078]
[1752334470229,2.6078,2918.7,2918.6,0.68501]
[1752334470427,2.6078,2919.0,2918.9,0.68493]
[1752334470926,1.6767,2919.0,2918.9,1.66093]
[1752334471133,2.6078,2919.3,2919.0,0.976]
[1752334471332,2.6078,2919.3,2919.1,0.68489]
[1752334471333,1.61596,2919.3,2919.1,0.68489]
[1752334471531,1.6767,2919.2,2919.1,0.68489]
[1752334471734,0.68487,2919.2,2919.0,0.68491]
[1752334471933,3.2078,2919.5,2919.0,0.68491]
[1752334471934,3.2927,2919.1,2919.0,0.68491]
[1752334472234,2.6078,2919.0,2918.9,0.68493]
[1752334472429,3.29274,2918.9,2918.8,3.89275]
[1752334472638,2.6078,2918.9,2918.8,3.89275]
[1752334472824,1.6767,2918.9,2918.8,4.86875]
[1752334473030,3.29274,2918.9,2918.8,3.2078]
[1752334473233,4.07325758,2919.4,2918.5,1.66103]
[1752334473437,2.6078,2919.1,2918.7,0.68498]
[1752334473631,0.68498,2918.8,2918.6,0.685]
[1752334473830,1.71214,2919.3,2918.5,1.66102]
[1752334473831,3.29279,2918.7,2918.5,1.66102]
[1752334474033,3.29279,2918.7,2918.1,3.2078]
[1752334474034,0.9311,2918.2,2918.1,3.2078]
[1752334474231,3.29291,2918.2,2918.1,3.2078]
[1752334474535,1.6767,2917.8,2917.7,3.2078]
[1752334474841,3.293,2917.8,2917.7,3.2078]
[1752334475135,3.29307,2917.5,2917.4,3.2078]
[1752334476435,2.6078,2917.1,2917.0,3.89319]
[1752334476834,1.6767,2917.1,2917.0,3.89319]
[1752334477132,3.2078,2917.9,2917.0,3.2078]
[1752334477333,0.9311,2917.4,2917.1,0.68535]
[1752334477539,0.9311,2917.1,2915.8,3.2078]
[1752334477728,3.2078,2915.3,2913.5,12.19930968]
[1752334477930,3.2078,2913.8,2912.3,17.07903356]
[1752334478235,4.92267,2914.7,2913.4,3.2078]
[1752334478438,1.23569466,2914.6,2913.8,3.2078]
[1752334478633,1.23573355,2914.5,2914.2,3.2078]
[1752334478839,1.23573355,2914.4,2914.3,52.304]
[1752334479135,1.23573355,2914.4,2914.3,55.0171]
[1752334479337,2.43450172,2914.4,2914.3,77.6296406]
[1752334479537,1.23573355,2914.4,2914.3,77.6296406]
[1752334479733,1.23573355,2914.4,2914.3,83.6056406]
[1752334479934,0.9311,2914.4,2913.8,3.2078]
[1752334480137,0.9311,2914.3,2913.7,3.2078]
[1752334480333,0.6861,2914.0,2913.3,1.6041]
[1752334480636,0.9311,2914.2,2913.9,3.2078]
[1752334480834,0.9311,2914.7,2914.0,54.482]
[1752334481033,0.9311,2914.3,2914.0,54.482]
[1752334481234,2.12986817,2914.8,2914.0,54.493]
[1752334481440,0.9311,2914.4,2914.1,3.2078]
[1752334481641,3.2078,2915.0,2914.1,3.2078]
[1752334481642,1.19876817,2915.0,2914.2,5.0333]
[1752334481840,1.19876817,2915.0,2914.7,3.4292]
[1752334482136,1.19876817,2915.3,2915.2,0.68581]
[1752334482330,1.19334973,2915.3,2915.2,31.8544506]
[1752334482532,0.9311,2916.5,2915.7,4.4052]
[1752334482734,2.4138225,2916.6,2916.4,6.637]
[1752334483031,3.01727813,2917.6,2916.7,1.6041]
[1752334483237,3.01727813,2917.7,2917.4,3.2078]
[1752334483434,4.22418938,2918.4,2917.7,2.1278]
[1752334483635,4.1389,2919.0,2918.3,6.533]
[1752334483636,8.36308938,2919.0,2918.3,6.533]
[1752334483837,9.04800938,2919.0,2918.7,0.65232206]
[1752334484033,2.1554,2918.9,2918.0,55.043]
[1752334484238,0.9311,2918.9,2918.1,3.2078]
[1752334484432,0.9311,2918.9,2918.5,0.65232206]
[1752334484636,3.2078,2919.0,2918.3,0.65232206]
[1752334485039,1.61611,2918.7,2918.3,0.65232206]
[1752334485238,0.9311,2919.2,2918.6,3.0546]
[1752334485536,3.2078,2919.3,2918.9,2.1278]
[1752334485741,3.2078,2919.3,2919.0,2.1278]
[1752334485943,3.2078,2919.3,2919.2,2.78012206]
[1752334486437,0.68471,2920.0,2919.3,3.0546]
[1752334486642,0.6848,2919.6,2919.2,68.35695228]
[1752334486838,5.56897758,2920.0,2919.2,55.001]
[1752334487035,0.68485,2919.3,2919.2,55.001]
[1752334487341,3.89265,2919.3,2919.2,55.001]
[1752334487742,3.2078,2919.3,2919.2,72.06387434]
[1752334488041,0.68495,2918.9,2918.8,57.0568]
[1752334488437,0.68495,2918.9,2918.8,2.78012206]
[1752334488934,3.2078,2919.2,2918.8,0.65232206]
[1752334489135,3.2078,2919.7,2919.1,0.65232206]
[1752334489333,0.68487,2919.2,2919.1,1.57912206]
[1752334489540,0.68495,2918.9,2918.8,2.1278]
[1752334489740,0.68495,2918.9,2918.8,16.41055228]
[1752334489941,0.68495,2918.9,2918.8,16.13607434]
[1752334490140,0.68495,2918.9,2918.8,2.78012206]
[1752334491038,0.9675,2919.4,2918.9,2.1278]
[1752334491244,0.9675,2919.4,2918.8,14.00827434]
[1752334491245,3.8926,2919.5,2919.4,2.1278]
[1752334491444,0.68483,2919.4,2919.3,54.725]
[1752334491635,0.68492,2919.0,2918.9,54.726]
[1752334491840,0.68492,2919.0,2918.9,55.37832206]
[1752334492044,1.88744773,2919.0,2918.9,54.726]
[1752334492240,1.71249,2918.7,2917.5,2.1278]
[1752334492450,0.68522,2917.8,2917.5,16.41055228]
[1752334492642,0.68516,2918.0,2917.9,0.65232206]
[1752334493039,44.9753,2918.3,2917.9,0.65232206]
[1752334493247,3.2078,2918.7,2918.2,0.65232206]
[1752334493438,0.68513,2918.1,2917.9,13.35595228]
[1752334493641,0.68513,2918.1,2918.0,2.1278]
[1752334493845,40.8,2918.5,2917.9,14.28275228]
[1752334493846,2.94645496,2918.4,2917.9,0.65232206]
[1752334494148,0.6852,2917.8,2917.7,2.1278]
[1752334494448,0.6852,2917.8,2917.7,15.48375228]
[1752334494649,1.23384717,2917.8,2917.7,14.00827434]
[1752334494843,1.23384717,2917.8,2917.7,14.93507434]
[1752334495041,0.6852,2917.8,2917.7,14.93507434]
[1752334495441,0.6852,2917.8,2917.7,17.06287434]
[1752334495839,0.6852,2917.8,2917.7,44.38787434]
[1752334496044,0.6852,2917.8,2917.7,43.42207434]
[1752334496241,1.91901919,2917.8,2917.7,16.13607434]
[1752334496436,0.6853,2917.4,2917.3,3.0546]
[1752334496642,0.68529,2917.5,2917.3,13.35595228]
[1752334496850,0.68529,2917.5,2917.4,30.3256]
[1752334497147,0.68529,2917.5,2917.4,3.44976058]
[1752334497347,0.68529,2917.5,2917.4,43.38907434]
[1752334497841,0.68537,2917.1,2917.0,2.1278]
[1752334498042,0.68537,2917.1,2917.0,42.71875228]
[1752334498247,0.68537,2917.1,2917.0,16.13607434]
[1752334498442,1.65287,2917.1,2917.0,2.78012206]
[1752334498643,0.68544,2916.8,2916.7,2.1278]
[1752334498949,0.68544,2916.8,2916.7,15.48375228]
[1752334499144,0.9675,2917.1,2916.7,2.78012206]
[1752334499349,3.2078,2917.5,2917.1,3.0546]
[1752334499648,3.2078,2917.5,2917.3,2.78012206]
[1752334499850,1.91932839,2917.4,2917.3,2.78012206]
[1752334500149,1.91932839,2917.4,2917.3,2.1278]
[1752334500849,0.68547,2916.7,2916.6,29.3248]
[1752334501048,0.9675,2916.7,2916.1,2.81339]
[1752334501242,0.68553,2916.4,2916.3,2.78012206]
[1752334501744,3.2078,2916.5,2916.3,2.78012206]
[1752334501940,3.2078,2916.9,2916.6,0.9268]
[1752334502139,27.168,2917.9,2916.4,0.65232206]
[1752334502140,3.2078,2917.1,2916.4,2.1278]
[1752334502346,3.89331,2916.5,2916.4,16.13607434]
[1752334502552,3.2078,2916.6,2916.5,2.78012206]
[1752334502848,3.2078,2916.6,2916.5,3.74011]
[1752334503051,3.89329,2916.6,2916.5,17.06287434]
[1752334503243,3.89329,2916.6,2916.5,17.74838434]
[1752334503451,4.44217657,2916.6,2916.5,17.74838434]
[1752334503652,5.12766657,2916.6,2916.5,17.06287434]
[1752334503844,0.68558,2916.2,2916.1,2.1278]
[1752334504047,2.20187657,2916.2,2915.9,2.1278]
[1752334504247,0.68563,2916.0,2915.9,2.1278]
[1752334504449,1.23437657,2916.0,2915.9,17.09618228]
[1752334504755,3.2078,2916.3,2916.2,0.68558]
[1752334505052,4.44230118,2916.3,2916.2,2.26470206]
[1752334505255,4.44230118,2916.3,2916.2,44.86645434]
[1752334505450,35.0941489,2916.9,2916.2,34.71830206]
[1752334505643,2.76500818,2917.2,2916.8,4.78692206]
[1752334505848,0.68539,2917.0,2916.9,2.78012206]
[1752334506048,0.68539,2917.0,2916.9,3.46553206]
[1752334506251,0.68539,2917.0,2916.9,2.78012206]
[1752334506549,40.8,2917.3,2917.0,0.9268]
[1752334506842,44.0078,2917.3,2917.2,0.68534]
[1752334507048,44.0078,2917.3,2917.1,0.65232206]
[1752334507243,0.68534,2917.2,2917.1,3.46549206]
[1752334507453,45.66063,2917.3,2917.2,0.68534]
[1752334507649,40.8,2917.3,2917.2,3.46546206]
[1752334507843,0.68545,2916.8,2916.6,2.1278]
[1752334508048,1.79849895,2917.4,2916.8,3.0546]
[1752334508249,7.3831,2918.2,2917.4,3.0546]
[1752334508542,1.65274,2917.7,2917.4,55.79608]
[1752334508748,1.65274,2917.7,2917.5,2.1278]
[1752334508943,0.9675,2917.9,2917.4,55.1108]
[1752334509148,0.9675,2917.9,2917.8,2.813]
[1752334509348,4.1753,2917.9,2917.8,2.813]
[1752334509550,4.86048,2917.9,2917.8,2.1278]
[1752334509850,0.68524,2917.7,2917.5,0.68525]
[1752334510054,4.86054,2917.7,2917.6,0.68525]
[1752334510251,2.39201554,2917.9,2917.8,2.813]
[1752334510456,40.8,2918.1,2917.8,2.813]
[1752334510457,2.39201554,2918.1,2918.0,3.0546]
[1752334510752,1.6526,2918.3,2918.2,0.68511]
[1752334511053,2.36117758,2918.3,2917.8,3.2078]
[1752334511250,1.65268,2917.9,2917.8,3.2078]
[1752334511451,6.56725758,2917.9,2917.5,3.2078]
[1752334511652,2.4931,2917.8,2917.1,2.1278]
[1752334511852,0.68537,2917.1,2917.0,3.2078]
[1752334512052,1.65287,2917.1,2917.0,3.2078]
[1752334512448,2.1740887,2917.1,2917.0,3.2078]
[1752334512756,0.68523,2917.7,2917.0,9.1346]
[1752334512950,0.68526,2917.6,2917.5,0.68527]
[1752334513149,0.68526,2917.6,2917.5,2.1278]
[1752334513353,1.65276,2917.6,2917.5,2.1278]
[1752334513853,4.86055,2917.6,2917.5,2.1278]
[1752334514162,0.68523,2917.7,2917.5,2.5673]
[1752334514347,2.39201554,2917.8,2917.7,0.68523]
[1752334514551,3.89289,2918.3,2918.2,0.68511]
[1752334514748,0.68511,2918.2,2918.1,2.5673]
[1752334514957,7.2801698,2918.3,2918.2,0.68511]
[1752334515158,4.1753,2918.3,2918.2,0.68511]
[1752334515357,2.4197698,2918.4,2918.2,0.68511]
[1752334515562,3.1048498,2918.4,2918.3,2.5673]
[1752334516064,3.1048498,2918.4,2918.3,3.25239]
[1752334516358,2.4197698,2918.4,2918.3,4.16239]
[1752334516560,0.9749,2918.5,2918.2,2.5673]
[1752334516859,0.68518,2917.9,2917.8,3.2078]
[1752334517161,1.6601,2917.8,2917.7,2.5673]
[1752334517361,0.68525,2917.6,2917.5,5.7751]
[1752334517550,1.20352145,2917.6,2917.5,6.46037]
[1752334517757,1.20352145,2917.6,2917.5,7.37037]
[1752334518559,5.56897758,2918.5,2918.4,0.68506]
[1752334518560,3.2078,2918.5,2918.4,0.68506]
[1752334518760,2.4197698,2918.9,2918.5,3.4773]
[1752334518960,0.68495,2918.9,2918.8,0.68496]
[1752334519166,0.9749,2918.8,2918.5,0.91]
[1752334519360,1.65989,2918.8,2918.6,0.685]
[1752334519560,4.1827,2918.8,2918.7,0.68499]
[1752334520155,0.68494,2919.0,2918.7,2.5673]
[1752334520361,7.98874738,2919.3,2918.9,2.5673]
[1752334520362,3.2078,2919.3,2918.9,2.5673]
[1752334520560,0.68492,2919.0,2918.9,2.5673]
[1752334520959,3.2078,2919.3,2919.0,0.91]
[1752334521162,3.2078,2919.3,2919.1,2.5673]
[1752334521363,3.2078,2919.3,2919.2,2.5673]
[1752334521558,6.4156,2919.3,2918.8,3.2078]
[1752334521864,0.9749,2919.1,2918.8,6.46006]
[1752334522064,0.9749,2919.1,2918.8,5.7751]
[1752334522065,0.68492,2919.0,2918.8,5.7751]
[1752334522366,0.68494,2918.9,2918.8,5.7751]
[1752334522761,0.68502,2918.6,2918.5,3.2078]
[1752334522966,0.685,2918.7,2918.5,3.89282]
[1752334523165,4.8677,2918.7,2918.5,3.89282]
[1752334523563,0.68502,2918.6,2918.5,3.2078]
[1752334523763,0.68502,2918.6,2918.5,3.89284]
[1752334524159,0.68502,2918.6,2917.8,3.4773]
[1752334524160,5.0,2918.6,2917.8,3.4773]
[1752334524367,0.9749,2918.1,2917.8,5.7751]
[1752334524565,0.68518,2917.9,2917.8,5.7751]
[1752334525158,0.68518,2917.9,2917.8,2.5673]
[1752334525364,1.66008,2917.9,2917.8,2.5673]
[1752334525560,0.9749,2918.1,2917.2,4.92113]
[1752334525765,0.68514,2918.1,2918.0,3.4773]
[1752334526168,3.2078,2918.3,2917.8,2.5673]
[1752334526367,0.68511,2918.2,2918.1,2.5673]
[1752334526679,0.68511,2918.2,2918.1,3.4773]
[1752334526861,0.68511,2918.2,2918.1,2.5673]
[1752334527066,3.8929,2918.3,2918.2,3.4773]
[1752334527467,0.6851,2918.3,2918.2,3.4773]
[1752334527664,0.68503,2918.6,2918.4,0.68505]
[1752334527870,0.68502,2918.6,2918.5,3.4773]
[1752334528069,4.1827,2918.7,2918.5,3.4773]
[1752334528268,0.68502,2918.6,2918.5,3.4773]
[1752334529071,0.68502,2918.6,2918.5,2.5673]
[1752334529571,1.65992,2918.6,2918.5,2.5673]
[1752334530364,0.68509,2918.3,2918.2,2.5673]
[1752334530565,1.81231229,2918.3,2918.2,2.5673]
[1752334530878,0.68516,2918.0,2917.9,4.16247]
[1752334531169,0.68512,2918.2,2918.1,2.5673]
[1752334531374,1.81239418,2918.2,2918.1,2.5673]
[1752334531770,1.81239418,2918.2,2918.1,3.25243]
[1752334531978,1.12727418,2918.2,2918.1,3.25243]
[1752334532177,1.12727418,2918.2,2918.1,4.16243]
[1752334532476,1.12727418,2918.2,2918.1,7.37023]
[1752334533268,1.12727418,2918.2,2918.1,6.6851]